[Event "Titled Tuesday Blitz January 17 Late 2023"]
[White "Adithya A Chullikkad"]
[Black "Cueto, Jonny"]
[WhiteFideId "45078734"]
[BlackFideId "3300145"]
[WhiteElo "2259"]
[BlackElo "2122"]
[Result "1-0"]
[Round "05"]
[TimeControl "180+2"]
[Date "2023.01.17"]
[WhiteClock "0:00:31"]
[BlackClock "0:00:03"]

1. d4 {[%clk 0:03:00]}  e6 {[%clk 0:02:56]} 2. Bf4 {[%clk 0:02:59]}  b6 {[%clk 0:02:54]} 3. e4 {[%clk 0:02:57]}  Bb7 {[%clk 0:02:54]} 4. f3 {[%clk 0:02:57]}  d5 {[%clk 0:02:52]} 5. e5 {[%clk 0:02:57]}  Nd7 {[%clk 0:02:53]} 6. Bd3 {[%clk 0:02:57]}  c5 {[%clk 0:02:53]} 7. c3 {[%clk 0:02:57]}  Rc8 {[%clk 0:02:43]} 8. Ne2 {[%clk 0:02:57]}  Ne7 {[%clk 0:02:38]} 9. Na3 {[%clk 0:02:56]}  Ng6 {[%clk 0:02:33]} 10. Bg3 {[%clk 0:02:53]}  cxd4 {[%clk 0:02:29]} 11. cxd4 {[%clk 0:02:52]}  Bb4+ {[%clk 0:02:30]} 12. Kf2 {[%clk 0:02:50]}  f6 {[%clk 0:02:16]} 13. Nc2 {[%clk 0:02:36]}  Be7 {[%clk 0:02:11]} 14. Bxg6+ {[%clk 0:02:28]}  hxg6 {[%clk 0:02:11]} 15. Nf4 {[%clk 0:02:29]}  Kf7 {[%clk 0:01:32]} 16. exf6 {[%clk 0:02:19]}  Nxf6 {[%clk 0:01:01]} 17. Nd3 {[%clk 0:02:02]}  Rf8 {[%clk 0:00:53]} 18. Ne5+ {[%clk 0:02:01]}  Kg8 {[%clk 0:00:45]} 19. Re1 {[%clk 0:01:54]}  Ne4+ {[%clk 0:00:19]} 20. Kg1 {[%clk 0:01:51]}  Nxg3 {[%clk 0:00:20]} 21. hxg3 {[%clk 0:01:52]}  g5 {[%clk 0:00:19]} 22. Ne3 {[%clk 0:01:44]}  Bd6 {[%clk 0:00:18]} 23. N3g4 {[%clk 0:01:44]}  Qe7 {[%clk 0:00:12]} 24. Ng6 {[%clk 0:01:43]}  Qf7 {[%clk 0:00:12]} 25. Nxf8 {[%clk 0:01:43]}  Rxf8 {[%clk 0:00:12]} 26. Qe2 {[%clk 0:01:43]}  Bxg3 {[%clk 0:00:12]} 27. Rec1 {[%clk 0:01:32]}  Qh5 {[%clk 0:00:09]} 28. Qxe6+ {[%clk 0:01:32]}  Kh8 {[%clk 0:00:08]} 29. Qe7 {[%clk 0:01:08]}  Rf4 {[%clk 0:00:09]} 30. Qxb7 {[%clk 0:00:58]}  Rxg4 {[%clk 0:00:09]} 31. Qc8+ {[%clk 0:00:58]}  Kh7 {[%clk 0:00:07]} 32. Qf5+ {[%clk 0:00:57]}  Kh6 {[%clk 0:00:03]} 33. Rc6+ {[%clk 0:00:56]}  g6 {[%clk 0:00:03]} 34. Qf8+ {[%clk 0:00:55]}  Kh7 {[%clk 0:00:03]} 35. Qf7+ {[%clk 0:00:31]} 1-0


[Site "https://www.chess.com"]

[Event "Titled Tuesday Blitz January 17 Late 2023"]
[White "Abdrlauf, Elham"]
[Black "Chigaev, Maksim"]
[WhiteFideId "1533533"]
[BlackFideId "4108116"]
[WhiteElo "2518"]
[BlackElo "2628"]
[Result "1-0"]
[Round "06"]
[TimeControl "180+2"]
[Date "2023.01.17"]
[WhiteClock "0:00:06"]
[BlackClock "0:00:06"]

1. e4 {[%clk 0:03:00]}  c5 {[%clk 0:03:00]} 2. Nf3 {[%clk 0:03:00]}  e6 {[%clk 0:03:00]} 3. c3 {[%clk 0:03:00]}  d5 {[%clk 0:02:59]} 4. e5 {[%clk 0:03:01]}  Nc6 {[%clk 0:02:58]} 5. d4 {[%clk 0:03:01]}  Bd7 {[%clk 0:02:58]} 6. Bd3 {[%clk 0:03:00]}  Qb6 {[%clk 0:02:52]} 7. dxc5 {[%clk 0:03:00]}  Bxc5 {[%clk 0:02:48]} 8. O-O {[%clk 0:03:01]}  a5 {[%clk 0:02:49]} 9. Nbd2 {[%clk 0:02:58]}  Nge7 {[%clk 0:02:44]} 10. Nb3 {[%clk 0:02:56]}  Ng6 {[%clk 0:02:44]} 11. Nxc5 {[%clk 0:02:55]}  Qxc5 {[%clk 0:02:45]} 12. Be3 {[%clk 0:02:54]}  Qe7 {[%clk 0:02:44]} 13. Bd4 {[%clk 0:02:55]}  O-O {[%clk 0:02:36]} 14. Qd2 {[%clk 0:02:46]}  f6 {[%clk 0:02:28]} 15. exf6 {[%clk 0:02:39]}  gxf6 {[%clk 0:02:28]} 16. Rfe1 {[%clk 0:02:35]}  Qg7 {[%clk 0:02:26]} 17. Bc5 {[%clk 0:02:18]}  Rf7 {[%clk 0:02:18]} 18. Be3 {[%clk 0:01:55]}  Nge5 {[%clk 0:02:08]} 19. Nxe5 {[%clk 0:01:51]}  Nxe5 {[%clk 0:02:09]} 20. Be2 {[%clk 0:01:49]}  Kh8 {[%clk 0:01:37]} 21. Bd4 {[%clk 0:01:49]}  Rg8 {[%clk 0:01:32]} 22. g3 {[%clk 0:01:49]}  Nc6 {[%clk 0:01:27]} 23. Bf3 {[%clk 0:01:43]}  e5 {[%clk 0:01:19]} 24. Be3 {[%clk 0:01:18]}  Be6 {[%clk 0:01:14]} 25. Bxd5 {[%clk 0:00:56]}  Rd7 {[%clk 0:01:11]} 26. c4 {[%clk 0:00:56]}  Rgd8 {[%clk 0:01:03]} 27. Qe2 {[%clk 0:00:37]}  Bxd5 {[%clk 0:00:59]} 28. cxd5 {[%clk 0:00:38]}  Rxd5 {[%clk 0:01:00]} 29. Rad1 {[%clk 0:00:38]}  Qg6 {[%clk 0:00:54]} 30. Rxd5 {[%clk 0:00:30]}  Rxd5 {[%clk 0:00:54]} 31. Rd1 {[%clk 0:00:31]}  Qe4 {[%clk 0:00:36]} 32. Rxd5 {[%clk 0:00:27]}  Qxd5 {[%clk 0:00:37]} 33. Qh5 {[%clk 0:00:25]}  Qd7 {[%clk 0:00:35]} 34. Qh6 {[%clk 0:00:19]}  Qd1+ {[%clk 0:00:32]} 35. Kg2 {[%clk 0:00:19]}  Qd5+ {[%clk 0:00:32]} 36. Kg1 {[%clk 0:00:19]}  Qf7 {[%clk 0:00:32]} 37. Qh3 {[%clk 0:00:16]}  f5 {[%clk 0:00:26]} 38. Qh4 {[%clk 0:00:15]}  Kg8 {[%clk 0:00:25]} 39. Qg5+ {[%clk 0:00:15]}  Qg6 {[%clk 0:00:26]} 40. Qh4 {[%clk 0:00:14]}  f4 {[%clk 0:00:24]} 41. Bb6 {[%clk 0:00:10]}  Qb1+ {[%clk 0:00:22]} 42. Kg2 {[%clk 0:00:11]}  Qe4+ {[%clk 0:00:20]} 43. f3 {[%clk 0:00:11]}  Qe2+ {[%clk 0:00:19]} 44. Bf2 {[%clk 0:00:12]}  Nd4 {[%clk 0:00:14]} 45. Qg4+ {[%clk 0:00:09]}  Kf7 {[%clk 0:00:09]} 46. gxf4 {[%clk 0:00:09]}  Nc2 {[%clk 0:00:08]} 47. Qf5+ {[%clk 0:00:08]}  Kg8 {[%clk 0:00:07]} 48. Qe6+ {[%clk 0:00:08]}  Kg7 {[%clk 0:00:06]} 49. Qxe5+ {[%clk 0:00:08]}  Qxe5 {[%clk 0:00:06]} 50. fxe5 {[%clk 0:00:09]}  Kg6 {[%clk 0:00:06]} 51. f4 {[%clk 0:00:05]}  Kf5 {[%clk 0:00:06]} 52. a3 {[%clk 0:00:04]}  Na1 {[%clk 0:00:04]} 53. Be1 {[%clk 0:00:04]}  Nb3 {[%clk 0:00:04]} 54. Bc3 {[%clk 0:00:03]}  a4 {[%clk 0:00:03]} 55. Kf3 {[%clk 0:00:04]}  Nc5 {[%clk 0:00:03]} 56. Ke3 {[%clk 0:00:05]}  Ne6 {[%clk 0:00:04]} 57. Kd3 {[%clk 0:00:04]}  b5 {[%clk 0:00:04]} 58. Bd2 {[%clk 0:00:02]}  h6 {[%clk 0:00:05]} 59. Kc3 {[%clk 0:00:03]}  h5 {[%clk 0:00:02]} 60. Kb4 {[%clk 0:00:03]}  Nd4 {[%clk 0:00:02]} 61. Bc3 {[%clk 0:00:02]}  Ne2 {[%clk 0:00:03]} 62. Kxb5 {[%clk 0:00:03]}  Nxf4 {[%clk 0:00:03]} 63. Kxa4 {[%clk 0:00:03]}  h4 {[%clk 0:00:04]} 64. Kb5 {[%clk 0:00:03]}  Kg4 {[%clk 0:00:04]} 65. a4 {[%clk 0:00:04]}  Kh3 {[%clk 0:00:05]} 66. a5 {[%clk 0:00:05]}  Kxh2 {[%clk 0:00:05]} 67. a6 {[%clk 0:00:06]}  h3 {[%clk 0:00:06]} 68. a7 {[%clk 0:00:06]}  Ne6 {[%clk 0:00:07]} 69. Kc6 {[%clk 0:00:05]}  Nd8+ {[%clk 0:00:07]} 70. Kc7 {[%clk 0:00:05]}  Ne6+ {[%clk 0:00:06]} 71. Kc8 {[%clk 0:00:06]} 1-0


[Site "https://www.chess.com"]

[Event "Titled Tuesday Blitz January 17 Late 2023"]
[White "Eljanov, Pavel"]
[Black "Rasulov, Vugar"]
[WhiteFideId "14102951"]
[BlackFideId "13402390"]
[WhiteElo "2705"]
[BlackElo "2523"]
[Result "0-1"]
[Round "06"]
[TimeControl "180+2"]
[Date "2023.01.17"]
[WhiteClock "0:00:38"]
[BlackClock "0:00:58"]

1. d4 {[%clk 0:03:00]}  Nf6 {[%clk 0:02:59]} 2. c4 {[%clk 0:03:01]}  e6 {[%clk 0:03:00]} 3. Nc3 {[%clk 0:03:01]}  Bb4 {[%clk 0:02:59]} 4. e3 {[%clk 0:03:01]}  O-O {[%clk 0:02:59]} 5. Bd3 {[%clk 0:03:01]}  d5 {[%clk 0:02:58]} 6. a3 {[%clk 0:03:01]}  Be7 {[%clk 0:02:51]} 7. Nf3 {[%clk 0:02:58]}  c5 {[%clk 0:02:48]} 8. O-O {[%clk 0:02:57]}  cxd4 {[%clk 0:02:46]} 9. exd4 {[%clk 0:02:57]}  Nc6 {[%clk 0:02:44]} 10. c5 {[%clk 0:02:56]}  b6 {[%clk 0:02:24]} 11. b4 {[%clk 0:02:55]}  Bb7 {[%clk 0:02:20]} 12. Re1 {[%clk 0:02:47]}  a5 {[%clk 0:02:11]} 13. b5 {[%clk 0:02:44]}  Nxd4 {[%clk 0:02:11]} 14. Nxd4 {[%clk 0:02:45]}  bxc5 {[%clk 0:02:11]} 15. Nf3 {[%clk 0:02:37]}  Nd7 {[%clk 0:01:57]} 16. Na4 {[%clk 0:02:17]}  Bf6 {[%clk 0:01:54]} 17. Bb2 {[%clk 0:01:57]}  Bxb2 {[%clk 0:01:49]} 18. Nxb2 {[%clk 0:01:58]}  c4 {[%clk 0:01:49]} 19. Bc2 {[%clk 0:01:44]}  Re8 {[%clk 0:01:43]} 20. Na4 {[%clk 0:01:23]}  e5 {[%clk 0:01:35]} 21. Bf5 {[%clk 0:01:23]}  f6 {[%clk 0:01:29]} 22. Bxd7 {[%clk 0:01:20]}  Qxd7 {[%clk 0:01:30]} 23. Nb6 {[%clk 0:01:20]}  Qxb5 {[%clk 0:01:30]} 24. Rb1 {[%clk 0:01:20]}  Qc5 {[%clk 0:01:22]} 25. Nxa8 {[%clk 0:01:18]}  Bxa8 {[%clk 0:01:23]} 26. Nd4 {[%clk 0:01:11]}  Qxa3 {[%clk 0:01:17]} 27. Nf5 {[%clk 0:01:09]}  g6 {[%clk 0:01:14]} 28. Qg4 {[%clk 0:01:05]}  Bc6 {[%clk 0:01:06]} 29. Rb6 {[%clk 0:01:01]}  Qc5 {[%clk 0:01:03]} 30. Reb1 {[%clk 0:00:58]}  c3 {[%clk 0:01:00]} 31. Rb8 {[%clk 0:00:44]}  c2 {[%clk 0:00:59]} 32. Rxe8+ {[%clk 0:00:43]}  Bxe8 {[%clk 0:01:00]} 33. Rc1 {[%clk 0:00:38]}  Qa3 {[%clk 0:00:58]} 0-1


[Site "https://www.chess.com"]

[Event "Titled Tuesday Blitz January 17 Late 2023"]
[White "Artemiev, Vladislav"]
[Black "Mikaelyan, Arman"]
[WhiteFideId "24101605"]
[BlackFideId "13304852"]
[WhiteElo "2701"]
[BlackElo "2523"]
[Result "1/2-1/2"]
[Round "06"]
[TimeControl "180+2"]
[Date "2023.01.17"]
[WhiteClock "0:00:03"]
[BlackClock "0:00:10"]

1. c4 {[%clk 0:02:59]}  c6 {[%clk 0:03:00]} 2. Nf3 {[%clk 0:02:58]}  d5 {[%clk 0:03:00]} 3. e3 {[%clk 0:02:58]}  Nf6 {[%clk 0:02:59]} 4. Qc2 {[%clk 0:02:58]}  g6 {[%clk 0:02:55]} 5. b3 {[%clk 0:02:58]}  Bg7 {[%clk 0:02:55]} 6. Bb2 {[%clk 0:02:58]}  O-O {[%clk 0:02:55]} 7. Be2 {[%clk 0:02:58]}  Bg4 {[%clk 0:02:36]} 8. O-O {[%clk 0:02:56]}  Nbd7 {[%clk 0:02:36]} 9. d3 {[%clk 0:02:38]}  e6 {[%clk 0:02:21]} 10. Nbd2 {[%clk 0:02:37]}  Qe7 {[%clk 0:02:18]} 11. Rac1 {[%clk 0:02:27]}  a5 {[%clk 0:02:11]} 12. a3 {[%clk 0:02:20]}  Rfc8 {[%clk 0:02:06]} 13. h3 {[%clk 0:02:16]}  Bxf3 {[%clk 0:02:06]} 14. Nxf3 {[%clk 0:02:16]}  Ne8 {[%clk 0:02:07]} 15. d4 {[%clk 0:02:09]}  Nd6 {[%clk 0:02:06]} 16. Nd2 {[%clk 0:02:01]}  e5 {[%clk 0:02:02]} 17. dxe5 {[%clk 0:01:50]}  Nxe5 {[%clk 0:01:51]} 18. cxd5 {[%clk 0:01:48]}  cxd5 {[%clk 0:01:52]} 19. Qb1 {[%clk 0:01:48]}  Qe6 {[%clk 0:01:43]} 20. Rxc8+ {[%clk 0:01:15]}  Rxc8 {[%clk 0:01:43]} 21. Rd1 {[%clk 0:01:15]}  h5 {[%clk 0:01:41]} 22. Rc1 {[%clk 0:00:46]}  Rxc1+ {[%clk 0:01:23]} 23. Qxc1 {[%clk 0:00:46]}  Ne4 {[%clk 0:01:22]} 24. Nxe4 {[%clk 0:00:42]}  dxe4 {[%clk 0:01:23]} 25. Qc2 {[%clk 0:00:37]}  Qd5 {[%clk 0:01:14]} 26. Bd4 {[%clk 0:00:31]}  Nc6 {[%clk 0:01:07]} 27. Bb6 {[%clk 0:00:27]}  Kh7 {[%clk 0:01:02]} 28. Bc4 {[%clk 0:00:24]}  Qe5 {[%clk 0:01:00]} 29. Bxf7 {[%clk 0:00:19]}  Qa1+ {[%clk 0:00:50]} 30. Kh2 {[%clk 0:00:19]}  Qe5+ {[%clk 0:00:48]} 31. g3 {[%clk 0:00:18]}  Qf5 {[%clk 0:00:45]} 32. Bc4 {[%clk 0:00:16]}  Ne5 {[%clk 0:00:43]} 33. Qe2 {[%clk 0:00:12]}  Nf3+ {[%clk 0:00:37]} 34. Kg2 {[%clk 0:00:12]}  Qe5 {[%clk 0:00:38]} 35. Qd1 {[%clk 0:00:09]}  h4 {[%clk 0:00:34]} 36. Bd4 {[%clk 0:00:04]}  Nxd4 {[%clk 0:00:16]} 37. exd4 {[%clk 0:00:05]}  Qxd4 {[%clk 0:00:17]} 38. Qg4 {[%clk 0:00:05]}  hxg3 {[%clk 0:00:13]} 39. Qh4+ {[%clk 0:00:04]}  Bh6 {[%clk 0:00:13]} 40. Qxg3 {[%clk 0:00:04]}  e3 {[%clk 0:00:10]} 41. Qc7+ {[%clk 0:00:04]}  Qg7 {[%clk 0:00:09]} 42. Qxg7+ {[%clk 0:00:02]}  Kxg7 {[%clk 0:00:10]} 43. fxe3 {[%clk 0:00:02]}  Bxe3 {[%clk 0:00:11]} 44. a4 {[%clk 0:00:03]}  Bc5 {[%clk 0:00:10]} 45. Kf3 {[%clk 0:00:03]}  Kf6 {[%clk 0:00:10]} 1/2-1/2


[Site "https://www.chess.com"]

[Event "Titled Tuesday Blitz January 17 Late 2023"]
[White "Boruchovsky, Avital"]
[Black "Duda, Jan-Krzysztof"]
[WhiteFideId "2800055"]
[BlackFideId "1170546"]
[WhiteElo "2539"]
[BlackElo "2724"]
[Result "0-1"]
[Round "06"]
[TimeControl "180+2"]
[Date "2023.01.17"]
[WhiteClock "0:00:06"]
[BlackClock "0:00:03"]

1. e4 {[%clk 0:03:00]}  e6 {[%clk 0:03:00]} 2. d4 {[%clk 0:03:00]}  c5 {[%clk 0:03:01]} 3. Nc3 {[%clk 0:03:01]}  cxd4 {[%clk 0:03:01]} 4. Qxd4 {[%clk 0:03:01]}  Nc6 {[%clk 0:03:01]} 5. Qd2 {[%clk 0:03:02]}  Nf6 {[%clk 0:03:00]} 6. Nf3 {[%clk 0:02:55]}  d5 {[%clk 0:02:51]} 7. exd5 {[%clk 0:02:53]}  exd5 {[%clk 0:02:52]} 8. Bb5 {[%clk 0:02:52]}  Bd6 {[%clk 0:02:52]} 9. O-O {[%clk 0:02:49]}  O-O {[%clk 0:02:52]} 10. h3 {[%clk 0:02:49]}  a6 {[%clk 0:02:44]} 11. Bd3 {[%clk 0:02:44]}  h6 {[%clk 0:02:36]} 12. a3 {[%clk 0:02:42]}  Bc7 {[%clk 0:02:32]} 13. b4 {[%clk 0:02:29]}  Qd6 {[%clk 0:02:30]} 14. Re1 {[%clk 0:02:30]}  Be6 {[%clk 0:02:01]} 15. Bb2 {[%clk 0:02:29]}  Rad8 {[%clk 0:01:56]} 16. Rad1 {[%clk 0:02:20]}  b5 {[%clk 0:01:50]} 17. Ne2 {[%clk 0:02:01]}  Bc8 {[%clk 0:01:44]} 18. Ned4 {[%clk 0:01:49]}  Ne4 {[%clk 0:01:19]} 19. Bxe4 {[%clk 0:01:48]}  dxe4 {[%clk 0:01:20]} 20. Rxe4 {[%clk 0:01:44]}  Qg6 {[%clk 0:01:13]} 21. Qe2 {[%clk 0:01:16]}  Nxd4 {[%clk 0:01:12]} 22. Rdxd4 {[%clk 0:01:09]}  Rxd4 {[%clk 0:01:02]} 23. Bxd4 {[%clk 0:01:07]}  Bxh3 {[%clk 0:00:20]} 24. Nh4 {[%clk 0:01:07]}  Qg5 {[%clk 0:00:20]} 25. Be3 {[%clk 0:00:36]}  Qd5 {[%clk 0:00:20]} 26. Bc5 {[%clk 0:00:35]}  Be6 {[%clk 0:00:07]} 27. Bxf8 {[%clk 0:00:34]}  Kxf8 {[%clk 0:00:08]} 28. Nf3 {[%clk 0:00:34]}  g5 {[%clk 0:00:05]} 29. Rd4 {[%clk 0:00:30]}  Qf5 {[%clk 0:00:04]} 30. Qd3 {[%clk 0:00:27]}  Qf6 {[%clk 0:00:04]} 31. Qh7 {[%clk 0:00:12]}  g4 {[%clk 0:00:03]} 32. Rd3 {[%clk 0:00:07]}  gxf3 {[%clk 0:00:03]} 33. gxf3 {[%clk 0:00:06]}  Bf5 {[%clk 0:00:03]} 0-1


[Site "https://www.chess.com"]

[Event "Titled Tuesday Blitz January 17 Late 2023"]
[White "Pakleza, Zbigniew"]
[Black "Paravyan, David"]
[WhiteFideId "1119290"]
[BlackFideId "4194985"]
[WhiteElo "2494"]
[BlackElo "2601"]
[Result "1/2-1/2"]
[Round "06"]
[TimeControl "180+2"]
[Date "2023.01.17"]
[WhiteClock "0:00:04"]
[BlackClock "0:00:06"]

1. d4 {[%clk 0:03:00]}  Nf6 {[%clk 0:03:00]} 2. Nf3 {[%clk 0:03:01]}  g6 {[%clk 0:03:00]} 3. Bf4 {[%clk 0:03:01]}  Bg7 {[%clk 0:03:01]} 4. e3 {[%clk 0:03:02]}  d6 {[%clk 0:03:01]} 5. h3 {[%clk 0:03:02]}  c5 {[%clk 0:02:58]} 6. c3 {[%clk 0:03:02]}  cxd4 {[%clk 0:02:53]} 7. cxd4 {[%clk 0:03:02]}  Nd5 {[%clk 0:02:50]} 8. Bg3 {[%clk 0:02:58]}  Qb6 {[%clk 0:02:47]} 9. Qd2 {[%clk 0:02:49]}  O-O {[%clk 0:02:39]} 10. Bc4 {[%clk 0:02:45]}  Be6 {[%clk 0:02:38]} 11. Na3 {[%clk 0:02:45]}  Nc6 {[%clk 0:02:10]} 12. O-O {[%clk 0:02:36]}  Na5 {[%clk 0:02:04]} 13. Be2 {[%clk 0:02:28]}  Nb4 {[%clk 0:02:01]} 14. b3 {[%clk 0:02:07]}  Rac8 {[%clk 0:01:53]} 15. Nc4 {[%clk 0:01:42]}  Bxc4 {[%clk 0:01:48]} 16. bxc4 {[%clk 0:01:43]}  Nxc4 {[%clk 0:01:46]} 17. Bxc4 {[%clk 0:01:42]}  Rxc4 {[%clk 0:01:46]} 18. Rfb1 {[%clk 0:01:34]}  Qa5 {[%clk 0:01:37]} 19. a3 {[%clk 0:01:24]}  Nc6 {[%clk 0:01:36]} 20. Rxb7 {[%clk 0:01:24]}  Qd5 {[%clk 0:01:27]} 21. Rab1 {[%clk 0:01:18]}  a6 {[%clk 0:00:35]} 22. Kh2 {[%clk 0:01:13]}  Qe4 {[%clk 0:00:27]} 23. R1b6 {[%clk 0:00:46]}  Bf6 {[%clk 0:00:17]} 24. Qb2 {[%clk 0:00:19]}  Na5 {[%clk 0:00:11]} 25. Ra7 {[%clk 0:00:19]}  Rcc8 {[%clk 0:00:10]} 26. Qb1 {[%clk 0:00:12]}  Qd5 {[%clk 0:00:05]} 27. Rbxa6 {[%clk 0:00:07]}  Nc4 {[%clk 0:00:05]} 28. Qb7 {[%clk 0:00:06]}  Qe6 {[%clk 0:00:02]} 29. Qb3 {[%clk 0:00:03]}  d5 {[%clk 0:00:01]} 30. Qd3 {[%clk 0:00:03]}  Qf5 {[%clk 0:00:01]} 31. Qxf5 {[%clk 0:00:02]}  gxf5 {[%clk 0:00:02]} 32. a4 {[%clk 0:00:03]}  Kg7 {[%clk 0:00:03]} 33. Ne5 {[%clk 0:00:03]}  Bxe5 {[%clk 0:00:03]} 34. dxe5 {[%clk 0:00:04]}  Rfe8 {[%clk 0:00:01]} 35. a5 {[%clk 0:00:04]}  Rc5 {[%clk 0:00:02]} 36. h4 {[%clk 0:00:02]}  h5 {[%clk 0:00:02]} 37. Bf4 {[%clk 0:00:02]}  e6 {[%clk 0:00:02]} 38. Kg3 {[%clk 0:00:01]}  Kg6 {[%clk 0:00:03]} 39. f3 {[%clk 0:00:02]}  Rb5 {[%clk 0:00:03]} 40. Rc7 {[%clk 0:00:02]}  Rxa5 {[%clk 0:00:02]} 41. Rac6 {[%clk 0:00:01]}  Ra3 {[%clk 0:00:03]} 42. Rd7 {[%clk 0:00:01]}  Nxe3 {[%clk 0:00:02]} 43. Rcc7 {[%clk 0:00:02]}  Rf8 {[%clk 0:00:03]} 44. Bg5 {[%clk 0:00:02]}  Nc4 {[%clk 0:00:03]} 45. Be7 {[%clk 0:00:03]}  Rg8 {[%clk 0:00:02]} 46. Bf6 {[%clk 0:00:03]}  Kh6+ {[%clk 0:00:03]} 47. Kh3 {[%clk 0:00:02]}  Rf8 {[%clk 0:00:01]} 48. Rxf7 {[%clk 0:00:02]}  Rxf7 {[%clk 0:00:02]} 49. Rxf7 {[%clk 0:00:03]}  Ra1 {[%clk 0:00:02]} 50. Bg5+ {[%clk 0:00:03]}  Kg6 {[%clk 0:00:02]} 51. Rf6+ {[%clk 0:00:04]}  Kg7 {[%clk 0:00:03]} 52. Rxe6 {[%clk 0:00:04]}  d4 {[%clk 0:00:03]} 53. Re7+ {[%clk 0:00:04]}  Kg6 {[%clk 0:00:03]} 54. Rd7 {[%clk 0:00:05]}  Rh1+ {[%clk 0:00:02]} 55. Kg3 {[%clk 0:00:05]}  Nxe5 {[%clk 0:00:03]} 56. Rd6+ {[%clk 0:00:05]}  Kh7 {[%clk 0:00:03]} 57. Rxd4 {[%clk 0:00:06]}  Nf7 {[%clk 0:00:03]} 58. Rd7 {[%clk 0:00:05]}  Kg6 {[%clk 0:00:03]} 59. Bf4 {[%clk 0:00:06]}  Re1 {[%clk 0:00:03]} 60. Rc7 {[%clk 0:00:05]}  Re6 {[%clk 0:00:03]} 61. Rc8 {[%clk 0:00:05]}  Kg7 {[%clk 0:00:03]} 62. Bg5 {[%clk 0:00:05]}  Re2 {[%clk 0:00:02]} 63. Rc6 {[%clk 0:00:04]}  Nxg5 {[%clk 0:00:01]} 64. hxg5 {[%clk 0:00:05]}  f4+ {[%clk 0:00:02]} 65. Kh3 {[%clk 0:00:05]}  Re1 {[%clk 0:00:01]} 66. Kh2 {[%clk 0:00:04]}  Re5 {[%clk 0:00:02]} 67. g6 {[%clk 0:00:04]}  Rf5 {[%clk 0:00:02]} 68. Kh3 {[%clk 0:00:04]}  Kh6 {[%clk 0:00:02]} 69. Kh4 {[%clk 0:00:04]}  Re5 {[%clk 0:00:02]} 70. Rf6 {[%clk 0:00:03]}  Re1 {[%clk 0:00:02]} 71. Rxf4 {[%clk 0:00:03]}  Rh1+ {[%clk 0:00:02]} 72. Kg3 {[%clk 0:00:03]}  Kxg6 {[%clk 0:00:03]} 73. Rh4 {[%clk 0:00:03]}  Ra1 {[%clk 0:00:03]} 74. Re4 {[%clk 0:00:03]}  Kg5 {[%clk 0:00:03]} 75. Re5+ {[%clk 0:00:04]}  Kg6 {[%clk 0:00:04]} 76. Rd5 {[%clk 0:00:04]}  Rb1 {[%clk 0:00:04]} 77. Rd6+ {[%clk 0:00:04]}  Kg5 {[%clk 0:00:03]} 78. Rd5+ {[%clk 0:00:05]}  Kg6 {[%clk 0:00:03]} 79. Rd4 {[%clk 0:00:06]}  Kg5 {[%clk 0:00:03]} 80. Ra4 {[%clk 0:00:06]}  Rc1 {[%clk 0:00:03]} 81. Kf2 {[%clk 0:00:05]}  h4 {[%clk 0:00:02]} 82. Ra5+ {[%clk 0:00:05]}  Kf4 {[%clk 0:00:02]} 83. Ra4+ {[%clk 0:00:04]}  Kg5 {[%clk 0:00:02]} 84. Rg4+ {[%clk 0:00:04]}  Kh5 {[%clk 0:00:03]} 85. Rg8 {[%clk 0:00:04]}  Rc2+ {[%clk 0:00:03]} 86. Kg1 {[%clk 0:00:05]}  Rc1+ {[%clk 0:00:02]} 87. Kh2 {[%clk 0:00:05]}  Rb1 {[%clk 0:00:03]} 88. Rh8+ {[%clk 0:00:04]}  Kg5 {[%clk 0:00:03]} 89. Rg8+ {[%clk 0:00:05]}  Kh5 {[%clk 0:00:03]} 90. f4 {[%clk 0:00:03]}  Rf1 {[%clk 0:00:04]} 91. Rf8 {[%clk 0:00:02]}  Kg4 {[%clk 0:00:04]} 92. Rg8+ {[%clk 0:00:02]}  Kh5 {[%clk 0:00:05]} 93. Rg5+ {[%clk 0:00:02]}  Kh6 {[%clk 0:00:05]} 94. Rf5 {[%clk 0:00:03]}  Kg6 {[%clk 0:00:05]} 95. Rf8 {[%clk 0:00:03]}  Kh5 {[%clk 0:00:04]} 96. f5 {[%clk 0:00:03]}  Kg5 {[%clk 0:00:04]} 97. f6 {[%clk 0:00:03]}  Rxf6 {[%clk 0:00:04]} 98. Rxf6 {[%clk 0:00:02]}  Kxf6 {[%clk 0:00:05]} 99. Kh3 {[%clk 0:00:03]}  Kg5 {[%clk 0:00:05]} 100. g3 {[%clk 0:00:03]}  hxg3 {[%clk 0:00:06]} 101. Kxg3 {[%clk 0:00:04]} 1/2-1/2


[Site "https://www.chess.com"]

[Event "Titled Tuesday Blitz January 17 Late 2023"]
[White "Bluebaum, Matthias"]
[Black "Iniyan, P"]
[WhiteFideId "24651516"]
[BlackFideId "25002767"]
[WhiteElo "2669"]
[BlackElo "2525"]
[Result "1-0"]
[Round "06"]
[TimeControl "180+2"]
[Date "2023.01.17"]
[WhiteClock "0:00:37"]
[BlackClock "0:01:05"]

1. d4 {[%clk 0:03:00]}  Nf6 {[%clk 0:02:55]} 2. c4 {[%clk 0:03:01]}  g6 {[%clk 0:02:56]} 3. Nc3 {[%clk 0:03:01]}  Bg7 {[%clk 0:02:57]} 4. e4 {[%clk 0:03:02]}  d6 {[%clk 0:02:58]} 5. Nf3 {[%clk 0:03:03]}  O-O {[%clk 0:02:58]} 6. Be2 {[%clk 0:03:03]}  e5 {[%clk 0:02:59]} 7. Be3 {[%clk 0:03:04]}  Ng4 {[%clk 0:02:59]} 8. Bg5 {[%clk 0:03:04]}  f6 {[%clk 0:02:59]} 9. Bh4 {[%clk 0:03:05]}  Nc6 {[%clk 0:02:59]} 10. d5 {[%clk 0:03:05]}  Ne7 {[%clk 0:02:59]} 11. Nd2 {[%clk 0:03:06]}  Nh6 {[%clk 0:02:59]} 12. f3 {[%clk 0:03:06]}  g5 {[%clk 0:02:58]} 13. Bf2 {[%clk 0:03:06]}  f5 {[%clk 0:02:59]} 14. c5 {[%clk 0:03:06]}  Ng6 {[%clk 0:02:58]} 15. Nc4 {[%clk 0:03:05]}  Nf4 {[%clk 0:02:54]} 16. O-O {[%clk 0:03:05]}  g4 {[%clk 0:02:47]} 17. fxg4 {[%clk 0:03:05]}  fxe4 {[%clk 0:02:47]} 18. cxd6 {[%clk 0:02:59]}  Nxe2+ {[%clk 0:02:38]} 19. Qxe2 {[%clk 0:02:58]}  Bxg4 {[%clk 0:02:38]} 20. Qxe4 {[%clk 0:02:56]}  cxd6 {[%clk 0:02:37]} 21. Ne3 {[%clk 0:02:27]}  Qg5 {[%clk 0:02:28]} 22. Nxg4 {[%clk 0:02:11]}  Nxg4 {[%clk 0:02:28]} 23. Bg3 {[%clk 0:02:11]}  Ne3 {[%clk 0:02:15]} 24. Rxf8+ {[%clk 0:01:59]}  Rxf8 {[%clk 0:02:16]} 25. Re1 {[%clk 0:01:58]}  Nf5 {[%clk 0:02:11]} 26. Bf2 {[%clk 0:01:57]}  Nd4 {[%clk 0:02:10]} 27. Bxd4 {[%clk 0:01:46]}  exd4 {[%clk 0:02:11]} 28. Qe6+ {[%clk 0:01:46]}  Kh8 {[%clk 0:02:08]} 29. Ne4 {[%clk 0:01:47]}  Qf4 {[%clk 0:01:59]} 30. Qxd6 {[%clk 0:01:37]}  Be5 {[%clk 0:01:55]} 31. g3 {[%clk 0:01:22]}  Bxd6 {[%clk 0:01:48]} 32. gxf4 {[%clk 0:01:20]}  Bxf4 {[%clk 0:01:49]} 33. Kg2 {[%clk 0:01:11]}  Rd8 {[%clk 0:01:43]} 34. Nf6 {[%clk 0:01:00]}  Bg5 {[%clk 0:01:27]} 35. Re8+ {[%clk 0:00:53]}  Rxe8 {[%clk 0:01:27]} 36. Nxe8 {[%clk 0:00:54]}  Kg8 {[%clk 0:01:18]} 37. Nd6 {[%clk 0:00:51]}  Bf4 {[%clk 0:01:15]} 38. Nxb7 {[%clk 0:00:40]}  d3 {[%clk 0:01:15]} 39. Kf3 {[%clk 0:00:41]}  Bxh2 {[%clk 0:01:15]} 40. d6 {[%clk 0:00:41]}  Kf7 {[%clk 0:01:04]} 41. d7 {[%clk 0:00:41]}  Bc7 {[%clk 0:01:04]} 42. d8=Q {[%clk 0:00:41]}  Bxd8 {[%clk 0:01:05]} 43. Nxd8+ {[%clk 0:00:42]}  Kf6 {[%clk 0:01:06]} 44. Ke3 {[%clk 0:00:36]}  h5 {[%clk 0:01:05]} 45. Kxd3 {[%clk 0:00:37]}  h4 {[%clk 0:01:05]} 46. Ke4 {[%clk 0:00:37]} 1-0


[Site "https://www.chess.com"]